[Event "*** Titled Tuesday Blitz"]
[Site "Chess.com"]
[Date "2021.02.16"]
[Round "4"]
[White "sergivila"]
[Black "The_Machine04"]
[Result "1/2-1/2"]
[WhiteElo "2304"]
[BlackElo "2443"]
[TimeControl "180+1"]
[EndTime "10:42:47 PST"]
[Termination "Game drawn by repetition"]

1. e4 {[%clk 0:03:00.9]} 1... d6 {[%clk 0:02:58.9]} 2. d4 {[%clk 0:02:59.3]}
2... Nf6 {[%clk 0:02:58.4]} 3. Nc3 {[%clk 0:02:58.6]} 3... e5 {[%clk 0:02:59.3]}
4. Nge2 {[%clk 0:02:56.4]} 4... Nc6 {[%clk 0:02:54.2]} 5. g3 {[%clk 0:02:55.7]}
5... Bg4 {[%clk 0:02:52.6]} 6. Qd3 {[%clk 0:02:36.9]} 6... a6 {[%clk 0:02:34.2]}
7. Bg2 {[%clk 0:02:31.9]} 7... g6 {[%clk 0:02:09.9]} 8. O-O {[%clk 0:02:29.6]}
8... Bg7 {[%clk 0:02:07]} 9. h3 {[%clk 0:02:27.4]} 9... Bd7 {[%clk 0:01:56.1]}
10. Bg5 {[%clk 0:02:21.6]} 10... h6 {[%clk 0:01:54.2]} 11. Be3 {[%clk
0:02:20.2]} 11... O-O {[%clk 0:01:53.4]} 12. Rad1 {[%clk 0:02:18.9]} 12... Re8
{[%clk 0:01:42.1]} 13. f4 {[%clk 0:02:11.8]} 13... exd4 {[%clk 0:01:33.2]} 14.
Nxd4 {[%clk 0:02:10.1]} 14... Nxd4 {[%clk 0:01:34]} 15. Bxd4 {[%clk 0:02:09.8]}
15... Bc6 {[%clk 0:01:34.9]} 16. Rfe1 {[%clk 0:02:03.3]} 16... Nd7 {[%clk
0:01:21.7]} 17. Bxg7 {[%clk 0:01:57.6]} 17... Kxg7 {[%clk 0:01:22.6]} 18. e5
{[%clk 0:01:31.8]} 18... Nc5 {[%clk 0:00:59.8]} 19. Qd4 {[%clk 0:01:24.4]} 19...
Ne6 {[%clk 0:00:58.1]} 20. Qf2 {[%clk 0:01:22.9]} 20... Bxg2 {[%clk 0:00:49.3]}
21. Kxg2 {[%clk 0:01:21.9]} 21... Qd7 {[%clk 0:00:46.5]} 22. exd6 {[%clk
0:01:19.7]} 22... cxd6 {[%clk 0:00:47.3]} 23. Rd2 {[%clk 0:01:08.9]} 23... Qc6+
{[%clk 0:00:44.5]} 24. Kh2 {[%clk 0:01:08.1]} 24... Rad8 {[%clk 0:00:33.7]} 25.
Red1 {[%clk 0:01:05.4]} 25... b5 {[%clk 0:00:32.6]} 26. f5 {[%clk 0:01:00]}
26... Ng5 {[%clk 0:00:28]} 27. Nd5 {[%clk 0:00:56.5]} 27... Qc5 {[%clk
0:00:19.2]} 28. Qf4 {[%clk 0:00:37.1]} 28... Re5 {[%clk 0:00:15.1]} 29. fxg6
{[%clk 0:00:31.8]} 29... f5 {[%clk 0:00:11.5]} 30. Nc3 {[%clk 0:00:25.4]} 30...
Qe3 {[%clk 0:00:08.9]} 31. Qxe3 {[%clk 0:00:24.5]} 31... Rxe3 {[%clk 0:00:09.8]}
32. Rxd6 {[%clk 0:00:23.9]} 32... Rxd6 {[%clk 0:00:07.2]} 33. Rxd6 {[%clk
0:00:24.8]} 33... Ne4 {[%clk 0:00:06.3]} 34. Nxe4 {[%clk 0:00:23.6]} 34... fxe4
{[%clk 0:00:07.2]} 35. Rxa6 {[%clk 0:00:20.1]} 35... Re2+ {[%clk 0:00:07.4]} 36.
Kg1 {[%clk 0:00:20.4]} 36... Rxc2 {[%clk 0:00:08.2]} 37. b3 {[%clk 0:00:20.3]}
37... e3 {[%clk 0:00:04.8]} 38. Kf1 {[%clk 0:00:20.2]} 38... Rf2+ {[%clk
0:00:03.9]} 39. Ke1 {[%clk 0:00:20.2]} 39... Rh2 {[%clk 0:00:04.2]} 40. a4
{[%clk 0:00:17.2]} 40... bxa4 {[%clk 0:00:04.7]} 41. bxa4 {[%clk 0:00:17.9]}
41... Rxh3 {[%clk 0:00:05.2]} 42. g4 {[%clk 0:00:17.6]} 42... Rg3 {[%clk
0:00:04.8]} 43. Ke2 {[%clk 0:00:17.7]} 43... Rxg4 {[%clk 0:00:04.1]} 44. Kxe3
{[%clk 0:00:18.2]} 44... h5 {[%clk 0:00:04.9]} 45. Kf3 {[%clk 0:00:18.2]} 45...
Rb4 {[%clk 0:00:04.6]} 46. a5 {[%clk 0:00:18.2]} 46... Ra4 {[%clk 0:00:04.6]}
47. Kg3 {[%clk 0:00:18.3]} 47... Kh6 {[%clk 0:00:03]} 48. Kh3 {[%clk 0:00:18.2]}
48... Kg7 {[%clk 0:00:03]} 49. Kg3 {[%clk 0:00:18.2]} 49... Kh6 {[%clk
0:00:03.2]} 50. Kh2 {[%clk 0:00:18.6]} 50... Kg7 {[%clk 0:00:03.6]} 51. Kg3
{[%clk 0:00:18.7]} 1/2-1/2

[Event "*** Titled Tuesday Blitz"]
[Site "Chess.com"]
[Date "2021.02.16"]
[Round "4"]
[White "ENajer77"]
[Black "Politov_Pavel"]
[Result "1-0"]
[WhiteElo "2623"]
[BlackElo "2412"]
[TimeControl "180+1"]
[EndTime "10:42:48 PST"]
[Termination "ENajer77 won on time"]

1. d4 {[%clk 0:02:11.7]} 1... Nf6 {[%clk 0:02:56.8]} 2. c4 {[%clk 0:02:07.8]}
2... g6 {[%clk 0:02:56.7]} 3. Nc3 {[%clk 0:02:07.2]} 3... Bg7 {[%clk 0:02:57.4]}
4. e4 {[%clk 0:02:06.7]} 4... d6 {[%clk 0:02:58]} 5. Be2 {[%clk 0:02:07.2]} 5...
O-O {[%clk 0:02:58.4]} 6. Be3 {[%clk 0:02:07.7]} 6... e5 {[%clk 0:02:54.7]} 7.
d5 {[%clk 0:02:07.6]} 7... a5 {[%clk 0:02:53.9]} 8. g4 {[%clk 0:02:07]} 8... Kh8
{[%clk 0:02:54.5]} 9. h4 {[%clk 0:02:05.5]} 9... Ng8 {[%clk 0:02:52]} 10. h5
{[%clk 0:02:04.8]} 10... g5 {[%clk 0:02:26.8]} 11. h6 {[%clk 0:01:52.5]} 11...
Nxh6 {[%clk 0:02:24.6]} 12. Nf3 {[%clk 0:01:41]} 12... f6 {[%clk 0:02:21.5]} 13.
Nd2 {[%clk 0:01:38.4]} 13... Na6 {[%clk 0:02:13]} 14. Nf1 {[%clk 0:01:36.7]}
14... Kg8 {[%clk 0:01:58.5]} 15. Ng3 {[%clk 0:01:36.6]} 15... Nc5 {[%clk
0:01:56.6]} 16. f3 {[%clk 0:01:31.4]} 16... c6 {[%clk 0:01:52.4]} 17. Qd2 {[%clk
0:01:30.1]} 17... cxd5 {[%clk 0:01:50.9]} 18. cxd5 {[%clk 0:01:24.9]} 18... Bd7
{[%clk 0:01:47.9]} 19. O-O-O {[%clk 0:01:24.6]} 19... Rc8 {[%clk 0:01:41.2]} 20.
Kb1 {[%clk 0:01:24.4]} 20... Qe8 {[%clk 0:01:31.6]} 21. Rh2 {[%clk 0:01:09.8]}
21... Nf7 {[%clk 0:01:31.2]} 22. Rdh1 {[%clk 0:01:08.8]} 22... h6 {[%clk
0:01:31.6]} 23. Nf5 {[%clk 0:01:05.8]} 23... b5 {[%clk 0:01:17.2]} 24. Nd1
{[%clk 0:00:56.1]} 24... b4 {[%clk 0:01:15.5]} 25. Nf2 {[%clk 0:00:56]} 25... a4
{[%clk 0:01:08]} 26. Nd3 {[%clk 0:00:52.3]} 26... b3 {[%clk 0:01:05.2]} 27. Nxd6
{[%clk 0:00:33.1]} 27... bxa2+ {[%clk 0:01:00.5]} 28. Kxa2 {[%clk 0:00:31.7]}
28... Nb3 {[%clk 0:00:56.7]} 29. Nxe8 {[%clk 0:00:28.3]} 29... Nxd2 {[%clk
0:00:57.3]} 30. Nxg7 {[%clk 0:00:27.9]} 30... Nc4 {[%clk 0:00:51.6]} 31. Nh5
{[%clk 0:00:27.4]} 31... Nxe3 {[%clk 0:00:46.9]} 32. Nxf6+ {[%clk 0:00:26]}
32... Kg7 {[%clk 0:00:47.6]} 33. Nxd7 {[%clk 0:00:26.5]} 33... Rfd8 {[%clk
0:00:48.1]} 34. N7c5 {[%clk 0:00:24.1]} 34... Rd6 {[%clk 0:00:40.2]} 35. Rc1
{[%clk 0:00:22.9]} 35... Rb8 {[%clk 0:00:39.3]} 36. Rhh1 {[%clk 0:00:17.5]}
36... a3 {[%clk 0:00:39.4]} 37. b3 {[%clk 0:00:17]} 37... Ng2 {[%clk 0:00:40.2]}
38. Rc4 {[%clk 0:00:15.4]} 38... Kf6 {[%clk 0:00:38.9]} 39. Rhc1 {[%clk
0:00:14.4]} 39... h5 {[%clk 0:00:38.6]} 40. gxh5 {[%clk 0:00:14.1]} 40... g4
{[%clk 0:00:37.8]} 41. fxg4 {[%clk 0:00:12.9]} 41... Ng5 {[%clk 0:00:38.6]} 42.
Rf1+ {[%clk 0:00:11.8]} 42... Kg7 {[%clk 0:00:35.2]} 43. Nxe5 {[%clk 0:00:12.2]}
43... Ne3 {[%clk 0:00:33.2]} 44. Rf5 {[%clk 0:00:11.1]} 44... Nxf5 {[%clk
0:00:31.3]} 45. gxf5 {[%clk 0:00:12]} 45... Re8 {[%clk 0:00:28.5]} 46. Ne6+
{[%clk 0:00:11.2]} 46... Kf6 {[%clk 0:00:27.7]} 47. Ng4+ {[%clk 0:00:10.6]}
47... Ke7 {[%clk 0:00:23.5]} 48. Nxg5 {[%clk 0:00:11.5]} 48... Rg8 {[%clk
0:00:24.1]} 49. f6+ {[%clk 0:00:11.2]} 49... Ke8 {[%clk 0:00:24.5]} 50. Rc8+
{[%clk 0:00:10.6]} 50... Kd7 {[%clk 0:00:23.9]} 51. Rxg8 {[%clk 0:00:10]} 1-0

[Event "*** Titled Tuesday Blitz"]
[Site "Chess.com"]
[Date "2021.02.16"]
[Round "4"]
[White "kingofthenil"]
[Black "adriangschnitzer"]
[Result "1-0"]
[WhiteElo "2676"]
[BlackElo "2482"]
[TimeControl "180+1"]
[EndTime "10:42:50 PST"]
[Termination "kingofthenil won by resignation"]

1. e4 {[%clk 0:03:00.9]} 1... c5 {[%clk 0:02:58.8]} 2. d3 {[%clk 0:02:45.5]}
2... Nc6 {[%clk 0:02:56.2]} 3. g3 {[%clk 0:02:45.5]} 3... Nf6 {[%clk 0:02:56.1]}
4. Bg2 {[%clk 0:02:45.1]} 4... d5 {[%clk 0:02:56.3]} 5. exd5 {[%clk 0:02:46]}
5... Nxd5 {[%clk 0:02:56.7]} 6. Nf3 {[%clk 0:02:46.3]} 6... g6 {[%clk 0:02:56]}
7. O-O {[%clk 0:02:14.4]} 7... Bg7 {[%clk 0:02:55.6]} 8. Nbd2 {[%clk 0:01:46.8]}
8... O-O {[%clk 0:02:51.1]} 9. Re1 {[%clk 0:01:45]} 9... Re8 {[%clk 0:02:40.4]}
10. c3 {[%clk 0:01:34.3]} 10... e5 {[%clk 0:02:29.3]} 11. Nc4 {[%clk 0:01:32.4]}
11... b5 {[%clk 0:02:24.7]} 12. Ne3 {[%clk 0:01:30.5]} 12... Bb7 {[%clk
0:02:16]} 13. Nxd5 {[%clk 0:01:26.3]} 13... Qxd5 {[%clk 0:02:16.9]} 14. Nxe5
{[%clk 0:01:26.7]} 14... Qxg2+ {[%clk 0:02:09.3]} 15. Kxg2 {[%clk 0:01:27.6]}
15... Nxe5+ {[%clk 0:02:09.3]} 16. Kf1 {[%clk 0:01:06.7]} 16... Nf3 {[%clk
0:01:54.4]} 17. Re3 {[%clk 0:00:40.1]} 17... Nxh2+ {[%clk 0:01:40.4]} 18. Ke1
{[%clk 0:00:31.2]} 18... Bf3 {[%clk 0:01:25]} 19. Qb3 {[%clk 0:00:20.2]} 19...
Bh6 {[%clk 0:01:19]} 20. Qxb5 {[%clk 0:00:17.6]} 20... Bxe3 {[%clk 0:01:13]} 21.
Bxe3 {[%clk 0:00:18.5]} 21... Rac8 {[%clk 0:01:05.6]} 22. Kd2 {[%clk 0:00:17.3]}
22... Ng4 {[%clk 0:01:05.4]} 23. Re1 {[%clk 0:00:17.2]} 23... c4 {[%clk
0:01:02.5]} 24. Bd4 {[%clk 0:00:11.9]} 24... Rxe1 {[%clk 0:00:50.9]} 25. Kxe1
{[%clk 0:00:12.2]} 25... cxd3 {[%clk 0:00:50.3]} 26. Qxd3 {[%clk 0:00:13.1]}
26... Re8+ {[%clk 0:00:49.8]} 27. Kd2 {[%clk 0:00:12]} 27... Be4 {[%clk
0:00:32.3]} 28. Qe2 {[%clk 0:00:12.1]} 28... Nh2 {[%clk 0:00:21.8]} 29. Kc1
{[%clk 0:00:09.5]} 29... a6 {[%clk 0:00:19.9]} 30. Qe3 {[%clk 0:00:08.9]} 30...
Nf3 {[%clk 0:00:18.5]} 31. Qh6 {[%clk 0:00:08.1]} 31... Nxd4 {[%clk 0:00:16.3]}
32. cxd4 {[%clk 0:00:09]} 32... Rc8+ {[%clk 0:00:16.1]} 33. Kd2 {[%clk
0:00:09.3]} 33... f5 {[%clk 0:00:17]} 34. Qg5 {[%clk 0:00:05.9]} 34... Rc2+
{[%clk 0:00:17.1]} 35. Ke3 {[%clk 0:00:04.2]} 35... Rxb2 {[%clk 0:00:17]} 36.
Qe7 {[%clk 0:00:04.7]} 36... Rc2 {[%clk 0:00:14.7]} 37. Kf4 {[%clk 0:00:02.5]}
37... Rxf2+ {[%clk 0:00:13.5]} 38. Kg5 {[%clk 0:00:03.1]} 38... f4 {[%clk
0:00:08.1]} 39. Kh6 {[%clk 0:00:02.6]} 39... Rh2+ {[%clk 0:00:07.7]} 40. Kg5
{[%clk 0:00:03]} 40... fxg3 {[%clk 0:00:07.2]} 41. Qxe4 {[%clk 0:00:03.6]} 41...
g2 {[%clk 0:00:07.1]} 42. Qd5+ {[%clk 0:00:04.1]} 42... Kf8 {[%clk 0:00:05.9]}
43. Qd8+ {[%clk 0:00:04.3]} 43... Kf7 {[%clk 0:00:04.9]} 44. Qf6+ {[%clk
0:00:04.7]} 44... Kg8 {[%clk 0:00:04.9]} 45. Qe6+ {[%clk 0:00:04.9]} 45... Kg7
{[%clk 0:00:05]} 46. Qe5+ {[%clk 0:00:04.4]} 46... Kf7 {[%clk 0:00:05.4]} 47.
Qxh2 {[%clk 0:00:05.3]} 47... h6+ {[%clk 0:00:06.1]} 48. Kxh6 {[%clk 0:00:05.4]}
48... Ke6 {[%clk 0:00:06.5]} 49. Qg1 {[%clk 0:00:06.3]} 49... Kd5 {[%clk
0:00:07.4]} 50. Qxg2+ {[%clk 0:00:07.2]} 50... Kxd4 {[%clk 0:00:08.1]} 51. Qxg6
{[%clk 0:00:08.1]} 51... Kc4 {[%clk 0:00:08.9]} 52. Qxa6+ {[%clk 0:00:07.7]}
52... Kb4 {[%clk 0:00:09.3]} 53. Qd3 {[%clk 0:00:06.7]} 53... Ka4 {[%clk
0:00:08.9]} 54. Qb3+ {[%clk 0:00:07.6]} 54... Ka5 {[%clk 0:00:08.7]} 55. a4
{[%clk 0:00:08.2]} 1-0

[Event "*** Titled Tuesday Blitz"]
[Site "Chess.com"]
[Date "2021.02.16"]
[Round "4"]
[White "bakki78"]
[Black "Shuvalov"]
[Result "1/2-1/2"]
[WhiteElo "2714"]
[BlackElo "2527"]
[TimeControl "180+1"]
[EndTime "10:42:56 PST"]
[Termination "Game drawn - insufficient material"]

1. e4 {[%clk 0:03:00.9]} 1... e6 {[%clk 0:02:49.2]} 2. d4 {[%clk 0:02:59.1]}
2... d5 {[%clk 0:02:49.4]} 3. Nd2 {[%clk 0:02:57.4]} 3... c5 {[%clk 0:02:48.5]}
4. exd5 {[%clk 0:02:57.1]} 4... exd5 {[%clk 0:02:49.4]} 5. Ngf3 {[%clk
0:02:54.7]} 5... Nc6 {[%clk 0:02:49]} 6. Bb5 {[%clk 0:02:51.5]} 6... Qe7+ {[%clk
0:02:48.6]} 7. Be2 {[%clk 0:02:48.4]} 7... Qc7 {[%clk 0:02:47.5]} 8. O-O {[%clk
0:02:46.8]} 8... Nf6 {[%clk 0:02:47]} 9. c4 {[%clk 0:02:46.6]} 9... cxd4 {[%clk
0:02:39.3]} 10. cxd5 {[%clk 0:02:45.6]} 10... Nxd5 {[%clk 0:02:38.7]} 11. Bc4
{[%clk 0:02:45.1]} 11... Nb6 {[%clk 0:02:32.8]} 12. Bb3 {[%clk 0:02:43.2]} 12...
Be7 {[%clk 0:02:31.7]} 13. Ne4 {[%clk 0:02:35.5]} 13... O-O {[%clk 0:02:27.2]}
14. Nxd4 {[%clk 0:02:33.8]} 14... Nxd4 {[%clk 0:02:25.1]} 15. Qxd4 {[%clk
0:02:32.6]} 15... Bf5 {[%clk 0:02:22.7]} 16. Bf4 {[%clk 0:02:26.2]} 16... Qc6
{[%clk 0:02:05.6]} 17. Ng3 {[%clk 0:02:22.5]} 17... Bg6 {[%clk 0:01:57.9]} 18.
Rac1 {[%clk 0:02:20]} 18... Qf6 {[%clk 0:01:37.9]} 19. Be5 {[%clk 0:02:16.8]}
19... Qh4 {[%clk 0:01:31.2]} 20. Bxg7 {[%clk 0:02:08.9]} 20... Rfd8 {[%clk
0:01:30.5]} 21. Qxh4 {[%clk 0:01:59.2]} 21... Bxh4 {[%clk 0:01:31.4]} 22. Bc3
{[%clk 0:01:58.9]} 22... Nd5 {[%clk 0:01:29]} 23. Bd2 {[%clk 0:01:47.7]} 23...
Bf6 {[%clk 0:01:17.4]} 24. Bxd5 {[%clk 0:01:45.9]} 24... Rxd5 {[%clk 0:01:18.3]}
25. Bc3 {[%clk 0:01:46]} 25... Bg5 {[%clk 0:01:14.9]} 26. Rcd1 {[%clk
0:01:45.8]} 26... Rad8 {[%clk 0:01:13.7]} 27. Rxd5 {[%clk 0:01:43.5]} 27... Rxd5
{[%clk 0:01:14.6]} 28. Re1 {[%clk 0:01:40.1]} 28... f5 {[%clk 0:01:09.1]} 29.
Nf1 {[%clk 0:01:35.8]} 29... f4 {[%clk 0:01:05.4]} 30. Nd2 {[%clk 0:01:34.2]}
30... Kf7 {[%clk 0:00:50]} 31. h3 {[%clk 0:01:11.8]} 31... b5 {[%clk 0:00:39]}
32. Re5 {[%clk 0:00:54.1]} 32... Rxe5 {[%clk 0:00:36.7]} 33. Bxe5 {[%clk
0:00:53.5]} 33... Ke6 {[%clk 0:00:36.7]} 34. Bb8 {[%clk 0:00:53.9]} 34... a5
{[%clk 0:00:36.2]} 35. Nb3 {[%clk 0:00:51.6]} 35... Bf6 {[%clk 0:00:31.3]} 36.
Nxa5 {[%clk 0:00:48.5]} 36... Bxb2 {[%clk 0:00:30.5]} 37. Nb7 {[%clk 0:00:35.7]}
37... Bb1 {[%clk 0:00:21]} 38. a4 {[%clk 0:00:29.5]} 38... b4 {[%clk 0:00:19.1]}
39. Bxf4 {[%clk 0:00:28.7]} 39... Bd4 {[%clk 0:00:14.4]} 40. Na5 {[%clk
0:00:26.9]} 40... Bc2 {[%clk 0:00:13.7]} 41. Bd2 {[%clk 0:00:26]} 41... Bc3
{[%clk 0:00:12.8]} 42. Bxc3 {[%clk 0:00:20.5]} 42... bxc3 {[%clk 0:00:13.7]} 43.
Kf1 {[%clk 0:00:20.5]} 43... Bxa4 {[%clk 0:00:12.8]} 44. Ke1 {[%clk 0:00:20.6]}
44... Kd5 {[%clk 0:00:13.3]} 45. Nb7 {[%clk 0:00:20.6]} 45... Kd4 {[%clk
0:00:12.6]} 46. Nd6 {[%clk 0:00:18.8]} 46... Bc6 {[%clk 0:00:12.2]} 47. f3
{[%clk 0:00:16.4]} 47... Kd3 {[%clk 0:00:12.1]} 48. Kd1 {[%clk 0:00:16.6]} 48...
Ba4+ {[%clk 0:00:11.2]} 49. Kc1 {[%clk 0:00:16.3]} 49... Ke3 {[%clk 0:00:11]}
50. Ne4 {[%clk 0:00:16.6]} 50... c2 {[%clk 0:00:09.6]} 51. Nf6 {[%clk
0:00:16.2]} 51... h6 {[%clk 0:00:09.1]} 52. Ng4+ {[%clk 0:00:16]} 52... Kf4
{[%clk 0:00:09.2]} 53. Nxh6 {[%clk 0:00:16.6]} 53... Kg3 {[%clk 0:00:10.1]} 54.
f4 {[%clk 0:00:15.6]} 54... Bd7 {[%clk 0:00:09.7]} 55. f5 {[%clk 0:00:15.2]}
55... Kxg2 {[%clk 0:00:09.9]} 56. f6 {[%clk 0:00:15.5]} 56... Be6 {[%clk
0:00:10.3]} 57. h4 {[%clk 0:00:15.4]} 57... Kh3 {[%clk 0:00:10.3]} 58. Nf5
{[%clk 0:00:14.2]} 58... Kg4 {[%clk 0:00:09.4]} 59. Nd4 {[%clk 0:00:13.6]} 59...
Bf7 {[%clk 0:00:09]} 60. Kxc2 {[%clk 0:00:14.1]} 60... Kxh4 {[%clk 0:00:09.1]}
61. Kd3 {[%clk 0:00:14.5]} 61... Kg5 {[%clk 0:00:09.4]} 62. Ke4 {[%clk 0:00:15]}
62... Kxf6 {[%clk 0:00:09.8]} 1/2-1/2

[Event "*** Titled Tuesday Blitz"]
[Site "Chess.com"]
[Date "2021.02.16"]
[Round "4"]
[White "TigrVShlyape"]
[Black "DenisQ"]
[Result "1-0"]
[WhiteElo "2918"]
[BlackElo "2664"]
[TimeControl "180+1"]
[EndTime "10:42:57 PST"]
[Termination "TigrVShlyape won by resignation"]

1. d4 {[%clk 0:03:00.9]} 1... d5 {[%clk 0:02:59.4]} 2. Nf3 {[%clk 0:02:59.7]}
2... Nf6 {[%clk 0:02:59.5]} 3. Bf4 {[%clk 0:02:57.2]} 3... c5 {[%clk 0:02:58.5]}
4. e3 {[%clk 0:02:57.3]} 4... cxd4 {[%clk 0:02:58.2]} 5. exd4 {[%clk 0:02:56.8]}
5... Nc6 {[%clk 0:02:58.9]} 6. c3 {[%clk 0:02:56.3]} 6... Bg4 {[%clk 0:02:56.2]}
7. Nbd2 {[%clk 0:02:55.7]} 7... e6 {[%clk 0:02:53.4]} 8. Be2 {[%clk 0:02:56.1]}
8... Bd6 {[%clk 0:02:52.4]} 9. Bxd6 {[%clk 0:02:56.1]} 9... Qxd6 {[%clk
0:02:51.8]} 10. O-O {[%clk 0:02:56.6]} 10... O-O {[%clk 0:02:51.4]} 11. Re1
{[%clk 0:02:56.1]} 11... Rab8 {[%clk 0:02:50.5]} 12. a4 {[%clk 0:02:55.5]} 12...
a6 {[%clk 0:02:49.8]} 13. a5 {[%clk 0:02:55.1]} 13... Qc7 {[%clk 0:02:47]} 14.
Qa4 {[%clk 0:02:53.3]} 14... Rfc8 {[%clk 0:02:38.1]} 15. Bf1 {[%clk 0:02:52.8]}
15... Bxf3 {[%clk 0:02:34.6]} 16. Nxf3 {[%clk 0:02:52]} 16... Ne4 {[%clk
0:02:34.7]} 17. Bd3 {[%clk 0:02:49.6]} 17... Nd6 {[%clk 0:02:33.6]} 18. Nd2
{[%clk 0:02:47.9]} 18... b5 {[%clk 0:02:18.1]} 19. axb6 {[%clk 0:02:46.9]} 19...
Rxb6 {[%clk 0:02:18.1]} 20. Ra2 {[%clk 0:02:39]} 20... a5 {[%clk 0:02:16.3]} 21.
g3 {[%clk 0:02:23.6]} 21... Rcb8 {[%clk 0:02:14.8]} 22. Qc2 {[%clk 0:02:18.3]}
22... g6 {[%clk 0:02:13.9]} 23. Nf3 {[%clk 0:02:11.2]} 23... Qd8 {[%clk
0:02:01.7]} 24. Kg2 {[%clk 0:02:05]} 24... Kg7 {[%clk 0:02:00]} 25. h4 {[%clk
0:02:02.8]} 25... h6 {[%clk 0:01:56.9]} 26. Qc1 {[%clk 0:01:58.9]} 26... Qf6
{[%clk 0:01:44.6]} 27. Ne5 {[%clk 0:01:57.9]} 27... Qd8 {[%clk 0:01:22.8]} 28.
Ng4 {[%clk 0:01:47.9]} 28... h5 {[%clk 0:01:18.4]} 29. Qh6+ {[%clk 0:01:38.6]}
29... Kg8 {[%clk 0:01:18.4]} 30. Ne5 {[%clk 0:01:21.9]} 30... Nxe5 {[%clk
0:01:17.3]} 31. dxe5 {[%clk 0:01:15.3]} 31... Ne4 {[%clk 0:01:01.7]} 32. Re2
{[%clk 0:01:07.1]} 32... Qc7 {[%clk 0:00:38.9]} 33. Qf4 {[%clk 0:00:24.7]} 33...
Nc5 {[%clk 0:00:32.7]} 34. Bb1 {[%clk 0:00:22.3]} 34... a4 {[%clk 0:00:28]} 35.
g4 {[%clk 0:00:21]} 35... hxg4 {[%clk 0:00:26.3]} 36. Qxg4 {[%clk 0:00:20.8]}
36... Kf8 {[%clk 0:00:21.7]} 37. Qf4 {[%clk 0:00:14.4]} 37... Ke8 {[%clk
0:00:20.5]} 38. Bc2 {[%clk 0:00:11]} 38... Rxb2 {[%clk 0:00:14.8]} 39. Bxa4+
{[%clk 0:00:11]} 39... Nxa4 {[%clk 0:00:12.7]} 40. Qxa4+ {[%clk 0:00:11]} 40...
R2b5 {[%clk 0:00:13.3]} 41. Reb2 {[%clk 0:00:08.5]} 41... Qd7 {[%clk 0:00:12.9]}
42. Rxb5 {[%clk 0:00:06.2]} 42... Qxb5 {[%clk 0:00:13.8]} 43. Qf4 {[%clk
0:00:04.9]} 43... Qc4 {[%clk 0:00:12.5]} 44. Qxc4 {[%clk 0:00:04.3]} 44... dxc4
{[%clk 0:00:13.4]} 45. Ra4 {[%clk 0:00:04.6]} 45... Rb5 {[%clk 0:00:13.2]} 46.
f4 {[%clk 0:00:04.5]} 46... Rc5 {[%clk 0:00:10.6]} 47. Kf3 {[%clk 0:00:04.8]}
47... Kf8 {[%clk 0:00:09.5]} 48. Ke4 {[%clk 0:00:05.3]} 48... Rc8 {[%clk
0:00:08.7]} 49. Kd4 {[%clk 0:00:05.4]} 49... Rd8+ {[%clk 0:00:08.9]} 50. Kxc4
{[%clk 0:00:05.8]} 50... Rd1 {[%clk 0:00:09.5]} 51. Kb5 {[%clk 0:00:05.2]} 51...
Rb1+ {[%clk 0:00:08.6]} 52. Rb4 {[%clk 0:00:05.2]} 52... Rf1 {[%clk 0:00:08.5]}
53. Rd4 {[%clk 0:00:04.9]} 53... Rh1 {[%clk 0:00:06.1]} 54. c4 {[%clk
0:00:05.3]} 54... Rxh4 {[%clk 0:00:06]} 55. c5 {[%clk 0:00:05.7]} 55... g5
{[%clk 0:00:06.6]} 56. c6 {[%clk 0:00:06.1]} 1-0